fUSD/lending_fUSD_20260129
["ID","MTS","AMOUNT","RATE_DAILY","PERIOD"]
[403914543,1769673032643,-150.0,0.00017863,2]
[403914544,1769673032653,-150.0,0.00017887,2]
[403914545,1769673032663,-262.28648754,0.000179,2]
[403914546,1769673032673,-566.89346747,0.000179,6]
[403914547,1769673032686,-133.10653253,0.000179,6]
[403914548,1769673032697,-267.11896772,0.000179,2]
[403914549,1769673032707,-520.21420428,0.000179,2]
[403914550,1769673032718,-547.36472273,0.000179,2]
[403914551,1769673032794,-28.89763717,0.000179,2]
[403914552,1769673032804,-227.691484,0.00017918,2]
[403914553,1769673032815,-150.0,0.00017918,2]
[403914554,1769673032825,-47.96475791,0.00017918,2]
[403914555,1769673032837,-102.03524209,0.00017918,2]
[403914556,1769673032847,-418.55,0.00017921,2]
[403914557,1769673032857,-150.0,0.00017925,2]
[403914558,1769673032867,-150.0,0.00017963,2]
[403914559,1769673032877,-250.0,0.00017973,2]
[403914560,1769673032887,-250.0,0.00017973,2]
[403914561,1769673032896,-150.0,0.00017973,2]
[403914562,1769673032906,-168.0,0.00017986,2]
[403914563,1769673032915,-256.15661696,0.0001799,2]
[403914564,1769673032925,-952.91,0.0001799,2]
[403914565,1769673032935,-952.91,0.0001799,2]
[403914566,1769673032944,-952.91,0.0001799,2]
[403914567,1769673032954,-952.91,0.0001799,2]
[403914568,1769673032963,-952.91,0.0001799,2]
[403914569,1769673032973,-487.0,0.0001799,2]
[403914570,1769673032983,-487.0,0.0001799,2]
[403914571,1769673032993,-487.0,0.0001799,2]
[403914572,1769673033002,-487.0,0.0001799,2]
[403914573,1769673033012,-179.40339117,0.0001799,2]
[403914574,1769673033026,-307.59660883,0.0001799,2]
[403914575,1769673033035,-749.14,0.0001799,2]
[403914576,1769673033045,-156.91,0.00017992,2]
[403914577,1769673033055,-151.0,0.00017997,2]
[403914578,1769673033064,-246.4963876,0.00017998,2]
[403914579,1769673033074,-1025.89330996,0.00017998,2]
[403914580,1769673033155,-2303.36937244,0.00017998,2]
[403914581,1769673033165,-1009.7207,0.00017999,2]
[403914582,1769673033176,-500.0,0.00017999,2]
[403914583,1769673033186,-500.0,0.00017999,2]
[403914584,1769673033196,-500.0,0.00017999,2]
[403914585,1769673033206,-360.07461884,0.00017999,2]
[403914586,1769673033216,-300.0,0.00017999,2]
[403914587,1769673033227,-300.0,0.00017999,2]
[403914588,1769673033236,-666.0,0.00017999,2]
[403914589,1769673033433,-500.0,0.00017999,2]
[403914590,1769673033443,-500.0,0.00017999,2]
[403914591,1769673033457,-500.0,0.00017999,2]
[403914592,1769673033468,-500.0,0.00017999,2]
[403914593,1769673033478,-74.13424545,0.00017999,2]
[403914594,1769673033489,-425.86575455,0.00017999,2]
[403914595,1769673033499,-500.0,0.00017999,2]
[403914596,1769673033510,-500.0,0.00017999,2]
[403914597,1769673033519,-500.0,0.00017999,2]
[403914598,1769673033529,-500.0,0.00017999,2]
[403914599,1769673033539,-500.0,0.00017999,2]
[403914600,1769673033554,-500.0,0.00017999,2]
[403914601,1769673033563,-500.0,0.00017999,2]
[403914602,1769673033573,-75.64007545,0.00017999,2]
[403914603,1769673033594,-174.93353167,0.00017999,2]
[403914604,1769673033604,-500.0,0.00017999,2]
[403914605,1769673033615,-70.72342803,0.00017999,2]
[403914606,1769673033640,-293.026048,0.00017999,2]
[403914607,1769673033649,-157.973952,0.00017999,2]
[403914608,1769673033665,-342.026048,0.00017999,2]
[403914609,1769673033675,-500.0,0.00017999,2]
[403914610,1769673033684,-500.0,0.00017999,2]
[403914611,1769673033694,-505.31031909,0.00017999,2]
[403914612,1769673033703,-297.10975383,0.00017999,2]
[403914613,1769673036775,151.0,0.00015926,2]
[403914614,1769673037434,-202.89024617,0.00017999,2]
[403914615,1769673037443,-500.0,0.00017999,2]
[403914616,1769673037454,-517.93611071,0.00017999,2]
[403914617,1769673037463,-500.0,0.00017999,2]
[403914618,1769673037472,-500.0,0.00017999,2]
[403914619,1769673037482,-500.0,0.00017999,2]
[403914620,1769673037491,-598.00979136,0.00017999,2]
[403914621,1769673037500,-500.0,0.00017999,2]
[403914622,1769673037509,-500.0,0.00017999,2]
[403914623,1769673037519,-577.13765043,0.00017999,2]
[403914624,1769673037528,-277.18996473,0.00017999,2]
[403914625,1769673037537,-500.0,0.00017999,2]
[403914626,1769673037548,-500.0,0.00017999,2]
[403914627,1769673037559,-500.0,0.00017999,2]
[403914628,1769673037568,-504.79979287,0.00017999,2]
[403914629,1769673037577,-3219.35453847,0.00018,2]
[403914630,1769673037589,-680.50293505,0.00018,2]
[403914631,1769673037601,-2605.14252648,0.00018,2]
[403914632,1769673037611,-274.40264672,0.00018,2]
[403914633,1769673037620,-220.53,0.00018,9]
[403914634,1769673037630,-4751.27440105,0.00018,2]
[403914635,1769673037641,-793931.7142558,0.00018,2]
[403914636,1769673037652,-8478.82952866,0.00018,2]
[403914637,1769673037663,-3296.01226809,0.00018,2]
[403914638,1769673037679,-5137.86953541,0.00018,2]
[403914641,1769673037714,-24845.04712779,0.00018,2]
[403914646,1769673037751,-4617.51286413,0.00018,2]
[403914650,1769673039497,-5682.97671562,0.00018,2]
[403914652,1769673039508,-523.34287504,0.00018,2]
[403914656,1769673039814,-1072.11184678,0.00018,2]
[403914657,1769673039826,-500.0,0.00018,2]
[403914658,1769673039837,-342.26322073,0.00018,2]
[403914659,1769673039848,-805.17628466,0.00018,2]
[403914660,1769673039859,-588.0,0.00018,2]
[403914665,1769673044685,-1161.0,0.00018,2]
[403914666,1769673044697,-321.60987692,0.00018,2]
[403914667,1769673044709,-1494.489,0.00018,2]
[403914668,1769673044721,-2004.87526858,0.00018,2]
[403914669,1769673044733,-1554.87227009,0.00018,2]
[403914670,1769673044757,-1058.32946893,0.00018,2]
[403914671,1769673044767,-621.71764742,0.00018,2]
[403914672,1769673044778,-617.61454938,0.00018,2]
[403914673,1769673044789,-734.06631494,0.00018,2]
[403914674,1769673044800,-500.0,0.00018,2]
[403914675,1769673044879,-6242.913408,0.00018,2]
[403914676,1769673044890,-619.84593116,0.00018,2]
[403914677,1769673044901,-334.64227692,0.00018,2]
[403914685,1769673045915,-859.21418281,0.00018,2]
[403914686,1769673045926,-5858.51232533,0.00018,2]
[403914687,1769673045942,-333.44283979,0.00018,2]
[403914688,1769673046015,-24.65075501,0.00018,2]
[403914689,1769673046457,-2341.81661271,0.00018,2]
[403914694,1769673087233,5532.0,0.000141,5]
[403914964,1769673932173,-1410.39621871,0.00014106,2]
[403914965,1769674040119,-1061.66328232,0.00014106,2]
[403914966,1769674046416,-630.16049897,0.00014106,2]
[403914967,1769674046436,-175.19283792,0.00014106,2]
[403914968,1769674046457,-266.0,0.00014106,2]
[403914969,1769674046476,-309.374975,0.00015438,2]
[403914970,1769674046496,-300.0,0.00015516,2]
[403914971,1769674046520,-1200.0,0.00015516,2]
[403914972,1769674046541,-300.0,0.00015516,2]
[403914973,1769674046561,-250.0,0.00015517,2]
[403914974,1769674046581,-600.0,0.00015517,2]
[403914975,1769674046600,-300.0,0.00015517,2]
[403914976,1769674046620,-250.0,0.00015517,2]
[403914977,1769674046639,-195.0,0.00015517,2]
[403914978,1769674046658,-1802.62498389,0.00015517,2]
[403914979,1769674046677,-500.0,0.00015517,2]
[403914980,1769674046698,-300.0,0.00015517,2]
[403914981,1769674046718,-195.0,0.00015517,2]
[403914982,1769674046738,-600.0,0.00015517,2]
[403914983,1769674046758,-2500.0,0.00015517,2]
[403914984,1769674046777,-300.0,0.00015517,2]
[403914985,1769674046798,-503.0,0.00016247,2]
[403914986,1769674046818,-550.0,0.00016372,2]
[403914987,1769674046838,-500.0,0.00016373,2]
[403914988,1769674046858,-500.0,0.00016373,2]
[403914989,1769674046878,-500.73623715,0.00016373,2]
[403914990,1769674046897,-500.66980862,0.00016373,2]
[403914991,1769674046917,-393.04,0.00016457,2]
[403914992,1769674046941,-165.22,0.00016712,2]
[403914993,1769674046961,-295.7006075,0.00016763,2]
[403915005,1769674165552,151.0,0.00016013,2]
[403915006,1769674169634,151.0,0.00016013,2]
[403915012,1769674182446,151.0,0.00016013,2]
[403915013,1769674198950,151.0,0.00016013,2]
[403915014,1769674215326,151.0,0.00016016,2]
[403915015,1769674231500,151.0,0.00016016,2]
[403915016,1769674231611,-1000.0,0.00016593,2]
[403915017,1769674231620,-1204.5393925,0.00016763,2]
[403915018,1769674231629,-163.0,0.0001677,2]
[403915019,1769674231639,-163.0,0.0001677,2]
[403915020,1769674231649,-200.0,0.00016807,2]
[403915021,1769674231658,-500.0,0.0001681,2]
[403915022,1769674231668,-306.83720489,0.00016913,2]
[403915023,1769674231679,-196.83470451,0.00016913,2]
[403915024,1769674231689,-200.0,0.00016913,2]
[403915025,1769674231699,-488.82529549,0.00016921,2]
[403915026,1769674231710,-183.90965914,0.00016921,2]
[403915027,1769674231719,-300.0,0.00016922,2]
[403915028,1769674231729,-1200.0,0.00016922,2]
[403915029,1769674231738,-2729.34034086,0.00016923,2]
[403915030,1769674231791,-5777.75965914,0.00016923,2]
[403915031,1769674231800,-1852.42,0.00016932,2]
[403915032,1769674231810,-250.0,0.00017,2]
[403915033,1769674231819,-322.6107,0.00017099,2]
[403915035,1769674231829,-854.2589148,0.00017099,2]
[403915037,1769674231838,-662.01922656,0.00017099,2]
[403915039,1769674231847,-578.20924308,0.00017099,2]
[403915041,1769674231856,-209.40437684,0.00017099,2]
[403915043,1769674231865,-162.0,0.000171,2]
[403915045,1769674231875,-162.0,0.000171,2]
[403915046,1769674231884,-217.15233878,0.00017154,2]
[403915047,1769674231893,-225.18697532,0.00017209,2]
[403915048,1769674231902,-457.0,0.0001726,2]
[403915049,1769674231912,-233.51889341,0.00017264,2]
[403915050,1769674231921,-242.15909246,0.00017319,2]
[403915051,1769674231931,-251.11897888,0.00017374,2]
[403915052,1769674231940,-5500.0,0.000174,6]
[403915053,1769674231950,-260.4103811,0.00017429,2]
[403915054,1769674231959,-270.0455652,0.00017484,2]
[403915055,1769674231969,-162.0,0.000175,2]
[403915056,1769674231979,-550.0,0.000175,2]
[403915057,1769674231988,-11100.0,0.000175,6]
[403915058,1769674231998,-280.03725112,0.00017539,2]
[403915059,1769674232008,-195.0,0.00017581,2]
[403915060,1769674232018,-306.04111667,0.00017581,2]
[403915061,1769674232028,-290.39862941,0.00017594,2]
[403915062,1769674232037,-1002.24347503,0.00017597,2]
[403915063,1769674232051,-174.44504984,0.00017597,2]
[403915064,1769674232060,-500.0,0.00017597,2]
[403915065,1769674232070,-500.0,0.00017597,2]
[403915066,1769674232081,-500.0,0.00017597,2]
[403915067,1769674232090,-500.0,0.00017597,2]
[403915068,1769674232100,-500.0,0.00017597,2]
[403915069,1769674232109,-500.0,0.00017597,2]
[403915070,1769674232121,-500.0,0.00017597,2]
[403915071,1769674232132,-500.0,0.00017597,2]
[403915072,1769674232144,-500.0,0.00017597,2]
[403915073,1769674232154,-500.0,0.00017597,2]
[403915074,1769674232163,-500.0,0.00017597,2]
[403915075,1769674232172,-500.0,0.00017597,2]
[403915076,1769674232181,-500.0,0.00017597,2]
[403915077,1769674232190,-500.0,0.00017597,2]
[403915078,1769674232200,-290.70372557,0.00017597,2]
[403915079,1769674232211,-500.0,0.00017597,2]
[403915080,1769674232220,-500.0,0.00017597,2]
[403915081,1769674232229,-500.0,0.00017597,2]
[403915082,1769674232238,-500.0,0.00017597,2]
[403915083,1769674232248,-500.0,0.00017597,2]
[403915084,1769674232257,-500.0,0.00017597,2]
[403915085,1769674232267,-500.0,0.00017597,2]
[403915086,1769674232276,-500.0,0.00017597,2]
[403915087,1769674232285,-500.0,0.00017597,2]
[403915088,1769674232294,-189.04783561,0.00017597,2]
[403915089,1769674232303,-500.0,0.00017597,2]
[403915090,1769674232312,-500.0,0.00017597,2]
[403915091,1769674232322,-500.0,0.00017597,2]
[403915092,1769674232747,-500.0,0.00017597,2]
[403915093,1769674232757,-500.0,0.00017597,2]
[403915094,1769674232767,-500.0,0.00017597,2]
[403915095,1769674232777,-500.0,0.00017597,2]
[403915096,1769674232786,-500.0,0.00017597,2]
[403915097,1769674232796,-500.0,0.00017597,2]
[403915098,1769674232805,-500.0,0.00017597,2]
[403915099,1769674232815,-500.0,0.00017597,2]
[403915100,1769674232825,-500.0,0.00017597,2]
[403915101,1769674232835,-500.0,0.00017597,2]
[403915102,1769674232845,-500.0,0.00017597,2]
[403915103,1769674232855,-500.0,0.00017597,2]
[403915104,1769674232866,-500.0,0.00017597,2]
[403915105,1769674232876,-500.0,0.00017597,2]
[403915106,1769674232887,-500.0,0.00017597,2]
[403915107,1769674232897,-500.0,0.00017597,2]
[403915108,1769674232907,-500.0,0.00017597,2]
[403915109,1769674232918,-500.0,0.00017597,2]
[403915110,1769674232928,-500.0,0.00017597,2]
[403915111,1769674232938,-500.0,0.00017597,2]
[403915112,1769674232948,-500.0,0.00017597,2]
[403915113,1769674232958,-500.0,0.00017597,2]
[403915114,1769674232968,-201.79,0.00017599,2]
[403915115,1769674232978,-1000.0,0.000176,2]
[403915116,1769674232988,-16600.0,0.000176,6]
[403915117,1769674232998,-1500.24,0.00017601,2]
[403915118,1769674233008,-2048.00571692,0.00017615,2]
[403915119,1769674233018,-885.86649465,0.00017647,2]
[403915120,1769674233028,-301.1433787,0.00017649,2]
[403915121,1769674233038,-252.0008295,0.00017699,2]
[403915122,1769674233049,-150.0,0.00017699,2]
[403915123,1769674233060,-22200.0,0.000177,6]
[403915124,1769674233070,-794.82,0.00017715,2]
[403915125,1769674233080,-150.0,0.00017754,2]
[403915126,1769674233091,-3544.67777873,0.000178,2]
[403915127,1769674233100,-9317.97100478,0.000178,6]
[403915128,1769674233114,-8465.80569875,0.000178,6]
[403915129,1769674233129,-9916.22329647,0.000178,6]
[403915130,1769674233139,-150.0,0.00017808,2]
[403915131,1769674233149,-150.0,0.00017809,2]
[403915132,1769674233159,-1369.40191156,0.00017811,2]
[403915133,1769674233171,-2175.27586708,0.00017811,2]
[403915134,1769674233180,-1898.85844425,0.0001782,2]
[403915135,1769674233190,-492.97765,0.0001782,2]
[403915136,1769674233199,-492.97765,0.0001782,2]
[403915137,1769674233209,-492.97766,0.0001782,2]
[403915138,1769674233219,-492.97766,0.0001782,2]
[403915139,1769674233229,-3544.67777864,0.00017822,2]
[403915140,1769674233238,-3544.67777864,0.00017833,2]
[403915141,1769674233249,-3544.67777864,0.00017844,2]
[403915142,1769674233259,-200.0,0.00017856,2]
[403915143,1769674233269,-150.0,0.00017863,2]
[403915144,1769674233279,-237.44600729,0.00017863,2]
[403915145,1769674233289,-201.79,0.00017873,2]
[403915146,1769674233300,-195.96527446,0.00017899,2]
[403915147,1769674233310,-312.82867448,0.00017899,2]
[403915148,1769674233320,-158.81192295,0.00017899,2]
[403915149,1769674233331,-490.41113292,0.00017899,2]
[403915150,1769674233341,-471.4456018,0.00017899,2]
[403915151,1769674233350,-500.0,0.00017899,2]
[403915152,1769674233363,-500.0,0.00017899,2]
[403915153,1769674233374,-500.0,0.00017899,2]
[403915154,1769674233384,-187.47383958,0.00017899,2]
[403915155,1769674233393,-250.0,0.00017899,5]
[403915156,1769674233403,-250.0,0.00017899,5]
[403915157,1769674233412,-250.0,0.00017899,5]
[403915158,1769674233422,-374.567054,0.00017899,5]
[403915159,1769674233431,-171.63115594,0.000179,2]
[403915160,1769674233440,-267.2706267,0.000179,2]
[403915161,1769674233449,-1140.6022,0.000179,2]
[403915162,1769674233459,-589.8512,0.000179,2]
[403915163,1769674233468,-3052.79860678,0.000179,6]
[403915164,1769674233517,-2447.20139322,0.000179,6]
[403915165,1769674233527,-23721.22269587,0.000179,2]
[403915167,1769674237632,-412.68307781,0.00017856,2]
[403915174,1769674238357,-3131.99470083,0.00017856,2]
[403915175,1769674238368,-10165.94276841,0.000179,2]
[403915176,1769674238981,-56803.61233016,0.000179,2]
[403915177,1769674238993,-672.30608656,0.000179,2]
[403915178,1769674239003,-558.75587285,0.000179,2]
[403915179,1769674239013,-1980.07636195,0.000179,2]
[403915180,1769674239024,-178.07931182,0.000179,2]
[403915181,1769674239034,-236.33317254,0.00017954,2]
[403915182,1769674239045,-150.0,0.00017973,2]
[403915183,1769674239056,-150.0,0.00017973,2]
[403915184,1769674239071,-235.08018115,0.0001799,2]
[403915185,1769674239081,-235.08018115,0.0001799,2]
[403915186,1769674239091,-235.08018115,0.0001799,2]
[403915187,1769674239102,-1050.88046112,0.00017999,5]
[403915188,1769674239111,-155.0,0.00017999,2]
[403915189,1769674239121,-500.0,0.00017999,2]
[403915190,1769674239131,-300.0,0.00017999,2]
[403915191,1769674239141,-300.0,0.00017999,2]
[403915192,1769674239151,-671.1938465,0.00017999,2]
[403915193,1769674239161,-500.0,0.00017999,2]
[403915194,1769674239171,-500.0,0.00017999,2]
[403915195,1769674239181,-500.0,0.00017999,2]
[403915196,1769674239190,-500.0,0.00017999,2]
[403915197,1769674239199,-4429.66744901,0.00018,2]
[403915198,1769674239211,-781.33255099,0.00018,2]
[403915199,1769674239220,-150.0,0.00018,2]
[403915200,1769674239229,-11003.78660549,0.00018,2]
[403915201,1769674239242,-286081.40467815,0.00018,2]
[403915202,1769674239251,-4244702.6757265,0.00018,2]
[403915203,1769674239262,-867708.138313,0.00018,2]
[403915204,1769674239281,-348.01441186,0.00018,2]
[403915205,1769674239292,-10869.68645824,0.00018,2]
[403915206,1769674239304,-3811.00920727,0.00018,2]
[403915207,1769674239337,-563.94852852,0.00018,2]
[403915208,1769674239349,-1441.69327585,0.00018,2]
[403915209,1769674239361,-3762.48496032,0.00018,2]
[403915214,1769674240039,-3544.67777864,0.00017867,2]
[403915215,1769674240053,-719.4213334,0.00018,2]
[403915216,1769674240064,-814.99050741,0.00018,2]
[403915217,1769674240075,-8350.89100885,0.00018,2]
[403915218,1769674240117,-394.07870975,0.00018,2]
[403915223,1769674240222,-17706.28683322,0.00018,2]
[403915224,1769674240234,-1377.33194684,0.00018,2]
[403915231,1769674244138,-3544.67777864,0.00017878,2]
[403915232,1769674244148,-357312.20866972,0.00018,2]
[403915233,1769674244158,-59240.77485362,0.00018,2]
[403915234,1769674244167,-503463.27074204,0.00018,2]
[403915238,1769674245719,-3251.89,0.00018,2]
[403915239,1769674245731,-1177.81320539,0.00018,2]
[403915240,1769674245796,-156.71069097,0.00018,2]
[403916670,1769674961977,229.0,0.00013786,2]
[403916672,1769675193113,-164.14,0.000155,2]
[403916673,1769675193147,-158.57388239,0.00015948,2]
[403916674,1769675193172,-272.74539118,0.00015948,2]
[403916675,1769675193198,-26.30827703,0.00015948,2]
[403916697,1769675354096,-1597.57754792,0.000149,2]
[403916698,1769675354118,-1260.16,0.00015496,2]
[403916699,1769675354140,-140.35172297,0.00015948,2]
[403916700,1769675354160,-500.0,0.00015964,2]
[403916701,1769675354181,-6250.60970385,0.00016,4]
[403916702,1769675354203,-151.0,0.0001606,2]
[403916703,1769675354223,-207.93,0.0001606,2]
[403916704,1769675354244,-151.0,0.00016062,2]
[403916705,1769675354264,-150.0,0.00016158,2]
[403916706,1769675354285,-300.0,0.00016199,2]
[403916707,1769675354305,-263.0,0.00016199,2]
[403916708,1769675354326,-11773.43220654,0.000162,5]
[403916709,1769675368582,-151.0,0.00016113,2]
[403916710,1769675368605,-3134.882866,0.000162,5]
[403916747,1769675432435,-151.0,0.00016071,2]
[403916748,1769675432446,-151.0,0.00016074,2]
[403916749,1769675432455,-151.0,0.00016074,2]
[403916750,1769675432464,-105.27538772,0.00016102,2]
[403916751,1769675432475,-59.21728264,0.00016102,2]
[403916752,1769675432484,-151.0,0.00016104,2]
[403916753,1769675432494,-151.0,0.00016107,2]
[403916754,1769675432504,-0.2505797,0.00016113,2]
[403916755,1769675432518,-150.7494203,0.00016113,2]
[403916756,1769675432527,-205.0,0.00016199,2]
[403916757,1769675432536,-1200.0,0.00016199,2]
[403916758,1769675432545,-300.0,0.00016199,2]
[403916759,1769675432554,-781.0105797,0.000162,5]
[403916760,1769675432566,-17620.20958588,0.000162,5]
[403916762,1769675432576,-952.82,0.00016202,2]
[403916763,1769675432585,-200.0,0.00016217,2]
[403916764,1769675432594,-166.66,0.00016284,2]
[403916765,1769675432603,-335.0,0.00016312,2]
[403916766,1769675432612,-263.17,0.00016372,7]
[403916767,1769675432622,-160.19813377,0.00016373,2]
[403916768,1769675432632,-500.0,0.00016373,2]
[403916769,1769675432641,-500.0,0.00016373,2]
[403916770,1769675432652,-539.90934846,0.00016373,2]
[403916771,1769675432661,-503.09870012,0.00016373,2]
[403916772,1769675432671,-500.0,0.00016373,2]
[403916773,1769675432679,-500.0,0.00016373,2]
[403916774,1769675432688,-356.26983033,0.00016373,2]
[403916775,1769675432698,-406.9,0.00016376,2]
[403916776,1769675432707,-164.49267036,0.00016429,2]
[403916777,1769675432716,-1326.0,0.00016459,2]
[403916778,1769675432726,-735.0,0.00016492,2]
[403916779,1769675432735,-1935.77863637,0.000165,2]
[403916780,1769675432744,-550.0,0.00016518,2]
[403916781,1769675432753,-500.0,0.00016519,2]
[403916782,1769675432762,-151.0,0.00016519,2]
[403916783,1769675432771,-151.0,0.00016519,2]
[403916784,1769675432780,-200.0,0.00016519,2]
[403916785,1769675432789,-151.0,0.00016519,2]
[403916786,1769675432799,-151.0,0.00016519,2]
[403916787,1769675432808,-151.0,0.00016519,2]
[403916788,1769675432817,-151.0,0.00016519,2]
[403916789,1769675432829,-151.0,0.00016519,2]
[403916790,1769675432841,-151.0,0.00016519,2]
[403916791,1769675432850,-151.0,0.00016519,2]
[403916792,1769675432859,-151.0,0.00016519,2]
[403916793,1769675432870,-155.50619026,0.00016519,2]
[403916794,1769675432880,-151.0,0.00016519,2]
[403916795,1769675432889,-151.0,0.00016519,2]
[403916796,1769675432899,-500.0,0.00016519,2]
[403916797,1769675432908,-151.0,0.00016519,2]
[403916798,1769675432918,-500.0,0.00016519,2]
[403916799,1769675432928,-151.0,0.00016519,2]
[403916800,1769675432936,-500.0,0.00016519,2]
[403916801,1769675432946,-151.0,0.00016519,2]
[403916802,1769675432955,-151.0,0.00016519,2]
[403916803,1769675432964,-500.0,0.00016519,2]
[403916804,1769675432973,-151.0,0.00016519,2]
[403916805,1769675432982,-500.0,0.00016519,2]
[403916806,1769675432991,-151.0,0.00016519,2]
[403916807,1769675432999,-500.0,0.00016519,2]
[403916808,1769675433011,-151.0,0.00016519,2]
[403916809,1769675433020,-500.0,0.00016519,2]
[403916810,1769675433030,-151.0,0.00016519,2]
[403916811,1769675433040,-500.0,0.00016519,2]
[403916812,1769675433050,-151.0,0.00016519,2]
[403916814,1769675433060,-249.88638469,0.00016519,2]
[403916815,1769675433070,-153.98079146,0.00016519,2]
[403916816,1769675433080,-500.0,0.00016519,2]
[403916817,1769675433090,-500.0,0.00016519,2]
[403916818,1769675433100,-500.0,0.00016519,2]
[403916819,1769675433109,-500.0,0.00016519,2]
[403916820,1769675433119,-500.0,0.00016519,2]
[403916821,1769675433130,-500.0,0.00016519,2]
[403916822,1769675433140,-500.0,0.00016519,2]
[403916823,1769675433150,-500.0,0.00016519,2]
[403916824,1769675433159,-500.0,0.00016519,2]
[403916825,1769675433169,-500.0,0.00016519,2]
[403916826,1769675433179,-500.0,0.00016519,2]
[403916827,1769675433188,-500.0,0.00016519,2]
[403916828,1769675433198,-500.0,0.00016528,2]
[403916829,1769675433207,-500.0,0.00016528,2]
[403916830,1769675433218,-500.0,0.00016528,2]
[403916831,1769675433227,-500.0,0.00016528,2]
[403916832,1769675433237,-500.0,0.00016528,2]
[403916833,1769675433247,-500.0,0.00016528,2]
[403916834,1769675433259,-500.0,0.00016528,2]
[403916835,1769675433268,-500.0,0.00016528,2]
[403916836,1769675433278,-500.0,0.00016528,2]
[403916837,1769675433287,-500.0,0.00016528,2]
[403916838,1769675433296,-500.0,0.00016528,2]
[403916839,1769675433306,-500.0,0.00016528,2]
[403916840,1769675433315,-500.0,0.00016528,2]
[403916841,1769675433324,-500.0,0.00016528,2]
[403916842,1769675433334,-500.0,0.00016528,2]
[403916843,1769675433343,-416.42726873,0.00016528,2]
[403916844,1769675433352,-500.0,0.00016528,2]
[403916845,1769675433360,-500.0,0.00016528,2]
[403916846,1769675433369,-500.0,0.00016528,2]
[403916847,1769675433379,-500.0,0.00016528,2]
[403916848,1769675433388,-500.0,0.00016528,2]
[403916849,1769675433397,-500.0,0.00016528,2]
[403916850,1769675433406,-500.0,0.00016528,2]
[403916851,1769675433415,-164.78444013,0.00016528,2]
[403916852,1769675433425,-500.0,0.00016528,2]
[403916853,1769675433435,-23467.34537893,0.00016529,2]
[403916854,1769675433444,-9999.99,0.00016529,2]
[403916855,1769675433453,-1416.34837141,0.0001654,2]
[403916856,1769675433461,-3737.76576096,0.0001654,2]
[403916857,1769675433471,-6593.86185386,0.0001654,2]
[403916858,1769675433480,-9864.02298041,0.0001654,2]
[403916859,1769675433490,-13346.3682,0.0001654,2]
[403916860,1769675433499,-166.66,0.00016619,2]
[403916861,1769675433509,-9999.99,0.00016619,2]
[403916862,1769675433519,-9634.78,0.00016619,2]
[403916863,1769675433529,-150.99,0.00016619,2]
[403916864,1769675433538,-6785.33,0.00016619,2]
[403916865,1769675433547,-2587.45,0.00016619,2]
[403916866,1769675433557,-343.2206,0.00016663,2]
[403916867,1769675433566,-158.57388239,0.00016663,2]
[403916868,1769675433575,-500.0,0.00016793,2]
[403916869,1769675433585,-218.98007214,0.00016912,2]
[403916870,1769675433594,-488.96173341,0.00016912,2]
[403916871,1769675433603,-500.0,0.00016912,2]
[403916872,1769675433612,-486.66430398,0.00016912,2]
[403916873,1769675433622,-500.0,0.00016912,2]
[403916874,1769675433631,-500.0,0.00016912,2]